Cogmind - Beta 10.2 @@@ ROGUE MODE // 2020.12.04 @ 22:01:56 // AFD2019/Pay2Buy Player: Minty Result: Self-destructed Performance ------------- Evolutions (2) 1000 Regions Visited (3) 600 Robots Destroyed (17) 85 Value Destroyed (618) 618 Prototype IDs (1) 20 Alien Tech Used (0) 0 Bonus (11) 11 TOTAL SCORE: 2334 Bonus ------- High Alert Combat Kills 11 Cogmind --------- Core Integrity 513/550 Matter 300/300 Energy 100/100 System Corruption 5% Temperature Cool (0) Movement Core (50) Location -8/Materials Parts ------- > --- POWER (2) -------- (None) > --- PROPULSION (2) --- (None) > --- UTILITY (4) ------ (None) > --- WEAPON (3) ------- (None) > --- INVENTORY (10) --- (None) Peak State ------------ > --- POWER ------------ Improved Ion Engine Nuclear Core > --- PROPULSION ------- Wheel Wheel > --- UTILITY ---------- Heat Sink Medium Armor Plating System Guard > --- WEAPON ----------- Riot Gun Plasma Rifle > --- INVENTORY -------- Shield Generator [Rating: 23] Favorites ----------- Power Improved Ion Engine Engine Improved Ion Engine Power Core Nuclear Core Propulsion Wheel Wheel Wheel Utility Medium Armor Plating Device Heat Sink Storage Small Battery Protection Medium Armor Plating Weapon Medium Laser Energy Gun Medium Laser Build | -11 -10 -9 -8 ------- Run | Scr Mat Mat Mat Slots Evolved 4 | . . 2 2 Power 1 | . . . 1 Propulsion . | . . . . Utility 2 | . . 1 1 Weapon 1 | . . 1 . Parts Attached 3 | . 1 1 1 Power 1 | . . . 1 Engine . | . . . . Core 1 | . . . 1 Reactor . | . . . . Propulsion . | . . . . Treads . | . . . . Leg . | . . . . Wheel . | . . . . Hover . | . . . . Flight . | . . . . Utility 2 | . 1 1 . Device 2 | . 1 1 . Storage . | . . . . Processor . | . . . . Hackware . | . . . . Protection . | . . . . Artifact . | . . . . Weapon . | . . . . Energy Gun . | . . . . Energy Cannon . | . . . . Ballistic Gun . | . . . . Ballistic Cannon . | . . . . Launcher . | . . . . Special Weapon . | . . . . Impact Weapon . | . . . . Slashing Weapon . | . . . . Piercing Weapon . | . . . . Special Melee Weapon . | . . . . Unidentified Prototypes . | . . . . Parts Lost 9 | . . 1 8 Power 1 | . . . 1 Propulsion 2 | . . . 2 Utility 2 | . . . 2 Weapon 4 | . . 1 3 Highest Loss Streak 7 | . . 1 7 Average Slot Usage (%) 84 | . 100 91 62 Engine 10 | . 14 11 6 Core 2 | . . . 6 Wheel 20 | . 28 22 13 Device 12 | . 2 17 15 Storage 3 | . 11 . . Protection 10 | . 14 11 6 Energy Gun 24 | . 28 29 13 Naked Turns 6 | . . . 6 Heaviest Build 31 | 20 20 25 31 Greatest Support 20 | 20 20 20 20 Greatest Overweight (x) 7 | . . 1 7 Average Overweight (x) . | . . . 1 Largest Inventory Capacity 10 | 10 10 10 10 Average Capacity 10 | 10 10 10 10 Most Carried 2 | . 1 2 2 Average Carried . | . . . 1 Final Capacity 10 | 10 10 10 10 Final Carried 2 | . . 2 . Class Distribution -------------------- 66% | Mutant 33% | Tank Dominant Class ---------------- Mutant | -10/Materials Tank | -9/Materials Mutant | -8/Materials Resources | -11 -10 -9 -8 ----------- Run | Scr Mat Mat Mat Matter Collected 276 | . 212 54 10 Remotely . | . . . . Salvage Created 718 | . 274 344 100 Parts . | . . . . Haulers Intercepted . | . . . . Recyclers Shooed 1 | . 1 . . Parts Field Recycled . | . . . . Retrieved Matter . | . . . . Parts Self-Destructed . | . . . . Prevented . | . . . . Kills | -11 -10 -9 -8 ------- Run | Scr Mat Mat Mat Combat Hostiles Destroyed 13 | . 4 7 2 Guns 12 | . 3 7 2 AOE 1 | . 1 . . Classes Destroyed 6 | . 3 3 . Worker 1 | . . 1 . Recycler 1 | . 1 . . Watcher 2 | . 1 1 . Grunt 10 | . 4 5 1 Brawler 1 | . . 1 . Sentry 2 | . . 1 1 Best Kill Streak 6 | . 6 6 1 Combat Bots Only 4 | . 4 4 1 Max Kills in Single Turn 1 | . 1 1 1 Gunslinging . | . . . . Exploded 1 | . 1 . . Melee . | . . . . Uniques/NPCs Destroyed . | . . . . Combat | -11 -10 -9 -8 -------- Run | Scr Mat Mat Mat Damage Taken 680 | . 131 156 393 Core 69 | . 20 12 37 Absorbed by Shields 65 | . . 23 42 Core Remaining (%) 96 | 100 92 97 . Volleys Fired 53 | . 15 22 16 Largest 3 | . 2 3 2 Hottest 165 | . 115 165 125 Shots Fired 100 | . 27 49 24 Gun 100 | . 27 49 24 Cannon . | . . . . Launcher . | . . . . Special . | . . . . Kinetic . | . . . . Thermal 75 | . 27 36 12 Explosive . | . . . . Electromagnetic 25 | . . 13 12 Robot Hit Streak 8 | . 8 6 6 Robot Miss Streak 10 | . 6 10 3 Penetration Max . | . . . . Secondary Targets . | . . . . Shots Hit Robots 59 | . 14 28 17 Core Hits 35 | . 8 18 9 Critical Hits 1 | . . . 1 Critical Kills . | . . . . Critical Parts Destroyed 1 | . . . 1 Melee Attacks . | . . . . Impact . | . . . . Slashing . | . . . . Piercing . | . . . . Sneak Attacks . | . . . . Combat Hostiles . | . . . . Follow-up Attacks . | . . . . Damage Inflicted 1121 | . 351 373 397 Guns 926 | . 188 344 394 Cannons . | . . . . Explosions 192 | . 163 29 . Melee . | . . . . Ramming 3 | . . . 3 Kinetic . | . . . . Thermal 610 | . 188 205 217 Explosive . | . . . . Electromagnetic 508 | . 163 168 177 Impact . | . . . . Slashing . | . . . . Piercing . | . . . . Highest Corruption 5 | . . . 5 Average Corruption 5 | . . . 5 Corruption Purged . | . . . . Overload Shots . | . . . . Overflow Damage 8 | . 8 . . Projectiles . | . . . . Explosions 8 | . 8 . . Melee . | . . . . Knockbacks . | . . . . Impact . | . . . . Kinetic . | . . . . Secondary . | . . . . Self-Inflicted Damage 26 | . 21 4 1 Shots 2 | . 1 1 . Rammed 4 | . . . 4 Targets Rammed 4 | . . . 4 Kicked . | . . . . Crushed . | . . . . Highest Temperature 398 | . 398 302 348 Average Temperature 127 | . 170 95 115 Received Heat Transfer 295 | . 60 73 162 Effects 5 | . 3 . 2 Shutdowns 2 | . 1 . 1 Matter Decay 1 | . 1 . . Short Circuit 2 | . 1 . 1 Siege Activations . | . . . . Robots Corrupted 1 | . 1 . . Combat Hostiles . | . . . . Parts Fried . | . . . . Impact Corruptions . | . . . . Robots Melted . | . . . . Combat Hostiles . | . . . . Parts Melted . | . . . . Heat Transferred 1385 | . 486 424 475 Parts Sabotaged . | . . . . Parts Stolen . | . . . . Parts Stripped . | . . . . Power Chain Reactions 1 | . . 1 . Missiles Intercepted . | . . . . Alert | -11 -10 -9 -8 ------- Run | Scr Mat Mat Mat Peak Influence 410 | . 187 410 247 Initial 172 | . . 78 172 Average 177 | . 70 241 201 Maximum Alert Level 2 | . . 2 1 Low Security (%) 53 | 100 100 31 39 Level 1 45 | . . 66 60 Level 2 . | . . 2 . Level 3 . | . . . . Level 4 . | . . . . Level 5 . | . . . . High Security . | . . . . Max Security . | . . . . Squads Dispatched 5 | . 2 3 . Investigation 2 | . 1 1 . Extermination . | . . . . Reinforcement 3 | . 1 2 . Assault . | . . . . Garrison . | . . . . Intercept . | . . . . Construction Impeded . | . . . . Haulers Reinforced . | . . . . Stealth | -11 -10 -9 -8 --------- Run | Scr Mat Mat Mat Distress Signals 1 | . 1 . . Communications Jammed . | . . . . Distress Signals . | . . . . Times Spotted 27 | . 10 11 6 Peak Tracking Total 4 | . 4 2 3 Tactical Retreats 1 | . . . 1 Traps | -11 -10 -9 -8 ------- Run | Scr Mat Mat Mat Traps Triggered 1 | . 1 . . Indirectly . | . . . . Trap Hack Attempts . | . . . . Triggered . | . . . . Disarmed . | . . . . Reprogrammed . | . . . . Reused . | . . . . Traps Extracted . | . . . . Installed . | . . . . Triggered . | . . . . Machines | -11 -10 -9 -8 ---------- Run | Scr Mat Mat Mat Machines Disabled 4 | . 4 . . Max in Single Turn 2 | . 2 . . Machines Sabotaged 1 | . . 1 . Garrisons Compromised . | . . . . Overloaded Fab Kills . | . . . . Fab Network Shutdowns . | . . . . Hacking | -11 -10 -9 -8 --------- Run | Scr Mat Mat Mat Machines Accessed 1 | . . 1 . Terminals 1 | . . 1 . Fabricators . | . . . . Repair Stations . | . . . . Recycling Units . | . . . . Scanalyzers . | . . . . Garrison Access . | . . . . Total Hacks 2 | . . 2 . Successful 1 | . . 1 . Failed 1 | . . 1 . Catastrophic . | . . . . Database Lockouts . | . . . . Manual 2 | . . 2 . Terminals 2 | . . 2 . Fabricators . | . . . . Repair Stations . | . . . . Recycling Units . | . . . . Scanalyzers . | . . . . Garrison Access . | . . . . Terminal Hacks . | . . . . Fabricator Hacks . | . . . . Repair Station Hacks . | . . . . Recycling Unit Hacks . | . . . . Scanalyzer . | . . . . Garrison Access Hacks . | . . . . Unauthorized Hacks 1 | . . 1 . Terminals 1 | . . 1 . Sabotage 1 | . . 1 . Fabricators . | . . . . Repair Stations . | . . . . Recycling Units . | . . . . Scanalyzers . | . . . . Garrison Access . | . . . . Data Cores Recovered . | . . . . Used . | . . . . Hacking Detections . | . . . . Full Trace Events . | . . . . Feedback Events . | . . . . Feedback Blocked . | . . . . Robot Schematics Acquired . | . . . . Robots Built . | . . . . Matter . | . . . . Time . | . . . . Total Robot Build Rating . | . . . . Part Schematics Acquired . | . . . . Parts Built . | . . . . Matter . | . . . . Time . | . . . . Total Part Build Rating . | . . . . Parts Repaired . | . . . . Time . | . . . . Parts Recycled . | . . . . Recycled Matter . | . . . . Retrieved Matter . | . . . . Retrieved Components . | . . . . Parts Scanalyzed . | . . . . Part Schematics Acquired . | . . . . Parts Damaged . | . . . . Bothacking | -11 -10 -9 -8 ------------ Run | Scr Mat Mat Mat Used RIF Installer . | . . . . Robots Hacked . | . . . . Non-combat . | . . . . Combat . | . . . . Robot Hacks Applied . | . . . . Relay Couplers Released . | . . . . Robots Rewired . | . . . . Allies Hacked . | . . . . Hacks Repelled . | . . . . Allies | -11 -10 -9 -8 -------- Run | Scr Mat Mat Mat Total Allies . | . . . . Largest Group . | . . . . Highest-Rated Group . | . . . . Highest-Rated Ally . | . . . . Total Orders . | . . . . Ally Attacks . | . . . . Total Damage . | . . . . Kills . | . . . . Allies Corrupted . | . . . . Allies Melted . | . . . . Intel | -11 -10 -9 -8 ------- Run | Scr Mat Mat Mat Robot Analysis Total . | . . . . Derelict Logs Recovered . | . . . . Drone Launches . | . . . . Drone Recoveries . | . . . . Exploration | -11 -10 -9 -8 ------------- Run | Scr Mat Mat Mat Turns Passed 429 | 12 115 177 125 Spaces Moved 310 | 18 89 130 73 Core 23 | 7 . . 16 Treads . | . . . . Legs . | . . . . Wheels 287 | 11 89 130 57 Hover . | . . . . Flight . | . . . . Fastest Speed 50 | 50 80 80 50 Average Speed 87 | 68 80 87 102 Slowest Speed 400 | 80 80 90 400 Overloaded Moves . | . . . . Propulsion Burnouts . | . . . . Robots Hopped . | . . . . Cave-ins Triggered . | . . . . Exploration Rate (%) 13 | 4 22 21 7 Regions Visited 3 Branch Regions . Pre-discovered Areas . | . . . . Known Exits Taken . | . . . . Unknown Exits Taken 3 | 1 1 1 . Scrap Searched . | . . . . Spaces Dug . | . . . . Terrain Destroyed 2 | . . 2 . Melee . | . . . . Projectile . | . . . . AOE 2 | . . 2 . Terrain Rammed . | . . . . Walls Destroyed . | . . . . Machines Disabled . | . . . . Actions | -11 -10 -9 -8 --------- Run | Scr Mat Mat Mat Total 374 | 17 107 152 98 Wait . | . . . . Move 307 | 17 88 129 73 Hop . | . . . . Pick Up . | . . . . Fast Attach . | . . . . Attach 2 | . 1 . 1 Detach . | . . . . Swap 1 | . . 1 . Drop 7 | . 3 . 4 Fire 53 | . 15 22 16 Melee . | . . . . Ram 4 | . . . 4 Kick . | . . . . Crush . | . . . . Escape Stasis . | . . . . Rewire . | . . . . Trap . | . . . . Miscellaneous . | . . . . Route ------- -11/Scrapyard -10/Materials -9/Materials -8/Materials History --------- Turn | Location | Event 4 | -11/Scrapyard | Discovered new exit (range 13) 13 | -11/Scrapyard | Entered Materials 116 | -10/Materials | Discovered new exit (range 15) 128 | -10/Materials | Entered another Materials area 128 | -9/Materials | Evolved 2 slots: Utility x1, Weapon x1 292 | -9/Materials | Discovered new exit (range 9) 305 | -9/Materials | Entered another Materials area 305 | -8/Materials | Evolved 2 slots: Power x1, Utility x1 430 | -8/Materials | Self-destructed Last Messages --------------- 00390_ G-47 Trooper destroyed. 00390_ Med. Armor Plating destroyed. 00392_ Riot Gun destroyed. [You open your loot box...] [Congratulations on your very own Shield Generator!] 00397_ Wheel destroyed. 00397_ System corrupted by crushing effect (+5). 00401_ Imp. Ion Engine destroyed. 00405_ Broken Wheel destroyed. 00408_ Dropped Shield Generator. 00409_ Dropped System Guard. 00413_ Slammed into G-47 Trooper. 00415_ Plasma Rifle destroyed. 00415_ Slammed into G-47 Trooper. 00417_ Nuclear Core permanently disabled. 00417_ Destabilizing: Short circuit. 00418_ Slammed into G-47 Trooper. 00423_ Heat Sink destroyed. 00424_ Dropped Broken Nuclear Core. 00427_ Dropped Shield Generator. Map ----- +----------------------------------------------------+ | | | | | | | | | | | | | | | | | | | | | | | | | | | | | | | ???????????##????????????????????????????????????? | | ??######### #????????????????????????????????????? | | ??# %#??###############???????????????????? | | ??# #??# # #???????????????????? | | ??# #??# # #???????????????????? | | ??# #??# # #???????????????????? | | ??# ####% * # #####???????????????? | | ??# !!+%%%% ! ????????? | | ??# #########+####+#######???????????????? | | ??# #??????? # #??????????????????? | | ??#####+#####??????? # @""" #??????????????????? | | ##### #????????"" # """ #??????????????????? | | #????????"" # """ #??????????????????? | | #???????""" # #??????????????????? | | #??????? # #??????????????????? | | ##### #??????? ########??????????????????? | | #?#######?????????####?????????????????????????? | | #??????????????????????????????????????????????? | | #??????????????????????????????????????????????? | | #??????????????????????????????????????????????? | | ###??????????????????????????????????????????????? | | ?????????????????????????????????????????????????? | | ?????????????????????????????????????????????????? | | ?????????????????????????????????????????????????? | | ?????????????????????????????????????????????????? | | ?????????????????????????????????????????????????? | | ?????????????????????????????????????????????????? | | ?????????????????????????????????????????????????? | | ?????????????????????????????????????????????????? | | ?????????????????????????????????????????????????? | | ?????????????????????????????????????????????????? | | ?????????????????????????????????????????????????? | | ?????????????????????????????????????????????????? | | ?????????????????????????????????????????????????? | | ?????????????????????????????????????????????????? | +----------------------------------------------------+ Best States ------------- Heat Dissipation 41 Energy Generation 21 Energy Capacity 405 Matter Stores 300 Matter Capacity 300 Sight Range 16 Terrain Scan Density 10 Corruption Prevention 12 Armor Coverage 225 Evasion (%) 50 Item Schematics ----------------- None Robot Schematics ------------------ None Fabricated ------------ Nothing Alien Tech Used ----------------- None Achievements -------------- None Challenges ------------ None Cogshop Purchases (16) ------------------------ Wheel (659) Wheel (659) Med. Armor Plating (Loot Box) Med. Laser (599) Imp. Ion Engine (699) Sml. Battery (599) Imp. Medium Laser (699) Adv. Weight Redist. System (Loot Box) Heat Sink (599) Spread Laser (776) Riot Gun (865) Shield Generator (Loot Box) System Guard (Loot Box) Nuclear Core (662) Plasma Rifle (Loot Box) Shield Generator (Loot Box) Game ------ Seed IntegratedMetafiberPick Manual? 0 Play Time 00:05:55 Cumulative 321.3 hours Start 2020.12.04 @ 21:57:05 End 2020.12.04 @ 22:01:56 Sessions 1 Manual Loads 0 Difficulty Rogue Special Mode AFD2019/Pay2Buy Game No. 187 Rogue 30 Adventurer 52 Explorer 105 Win Type - Total 19 Types 17/0/1/0/0/0/0/1/0 Lore% 62 Gallery% 85 Achievement% 64 Wizard Run 0 Options --------- ASCII 0 Keyboard 0 Movement Mouse Keybinds 0 Fullscreen 2 Font 18/TerminusBold Map View 76x50 Tactical HUD 1 Map Filters NONE Filters NONE Steam 1 RUN: 67bf6c65-6f53-404a-a615-2eb94a752f34